[Event "FIDE World School-ch G-13 2025"]
[Site "Vrnjacka Banja"]
[Date "2025.03.21"]
[Round "2.5"]
[White "Leca Andrei, Anastasia"]
[Black "Ardra, K P"]
[Result "*"]
[Annotator "NA RC"]
[ECO "B80"]
[WhiteElo "1805"]
[BlackElo "1544"]
[PlyCount "32"]
[EventDate "2025.03.19"]
[EventType "swiss"]
[EventCountry "SRB"]
[SourceTitle "playchess.com"]
[Source "ChessBase"]
[SourceQuality "1"]
[TimeControl "5400+30"]

1. e4 {[%emt 0:00:03]} c5 {[%emt 1:31:00]} 2. Nf3 {[%emt 0:00:20]} e6 {[%emt 0:00:54]} 3. d4 {[%emt 0:00:51]} cxd4 {[%emt 0:00:07]} 4. Nxd4 {[%emt 0:00:16]} Nf6 {[%emt 0:00:05]} 5. Nc3 {[%emt 0:00:43]} d6 {[%emt 0:00:06]} 6. Be3 {[%emt 0:01:31]} a6 {[%emt 0:00:54]} 7. Bd3 {[%emt 0:03:06]} b5 {[%emt 0:00:33]} 8. a3 {[%emt 0:01:13]} Bb7 {[%emt 0:01:10]} 9. Qe2 {[%emt 0:01:49]} Nbd7 {[%emt 0:02:47]} 10. f3 {[%emt 0:01:49]} Rc8 {[%emt 0:03:18]} 11. a4 {[%emt 0:05:37]} b4 {[%emt 0:11:55]} 12. Na2 {[%emt 0:01:06]} a5 {[%emt 0:05:38]} 13. c3 {[%emt 0:04:42]} d5 {[%emt 0:06:00]} 14. Bd2 {[%emt 0:02:37]} Bc5 {[%emt 0:08:14]} 15. Nb3 {[%emt 0:03:01]} dxe4 {[%emt 0:08:09]} 16. fxe4 {[%emt 0:05:25]} Nxe4 {[%emt 0:01:31]} *

[Event "FIDE World School-ch G-13 2025"]
[Site "Vrnjacka Banja"]
[Date "2025.03.21"]
[Round "2.5"]
[White "Tadic, Sofija"]
[Black "Leca Andrei, Anastasia"]
[Result "0-1"]
[Annotator "NA RC"]
[ECO "B80"]
[WhiteElo "1600"]
[BlackElo "1805"]
[PlyCount "66"]
[EventDate "2025.03.19"]
[EventType "swiss"]
[EventCountry "SRB"]
[SourceTitle "playchess.com"]
[Source "ChessBase"]
[SourceQuality "1"]
[TimeControl "5400+30"]

1. e4 {[%emt 0:00:03]} c5 {[%emt 0:00:06]} 2. Nf3 {[%emt 0:00:20]} e6 {[%emt 0:00:54]} 3. d4 {[%emt 0:00:51]} cxd4 {[%emt 0:00:07]} 4. Nxd4 {[%emt 0:00:16]} Nf6 {[%emt 0:00:05]} 5. Nc3 {[%emt 0:00:43]} d6 {[%emt 0:00:06]} 6. Be3 {[%emt 0:01:31]} a6 {[%emt 0:00:54]} 7. Bd3 {[%emt 0:03:06]} b5 {[%emt 0:00:33]} 8. a3 {[%emt 0:01:13]} Bb7 {[%emt 0:01:10]} 9. Qe2 {[%emt 0:01:49]} Nbd7 {[%emt 0:02:47]} 10. f3 {[%emt 0:01:49]} Rc8 {[%emt 0:03:18]} 11. a4 {[%emt 0:05:37]} b4 {[%emt 0:11:55]} 12. Na2 {[%emt 0:01:06]} a5 {[%emt 0:05:38]} 13. c3 {[%emt 0:04:42]} d5 {[%emt 0:06:00]} 14. Bd2 {[%emt 0:02:37]} Bc5 {[%emt 0:08:14]} 15. Nb3 {[%emt 0:03:01]} dxe4 {[%emt 0:08:09]} 16. fxe4 {[%emt 0:05:25]} Nxe4 {[%emt 0:01:31]} 17. g3 {[%emt 0:10:17]} Nxd2 {[%emt 0:01:56]} 18. Kxd2 {[%emt 0:01:13]} Bxh1 {[%emt 0:00:48]} 19. Rxh1 {[%emt 0:00:24]} bxc3+ {[%emt 0:00:04]} 20. Nxc3 {[%emt 0:01:54]} Bb4 {[%emt 0:00:16]} 21. Bb5 {[%emt 0:01:07]} O-O {[%emt 0:00:37]} 22. Bd3 {[%emt 0:01:08]} Nc5 {[%emt 0:00:46]} 23. Nxc5 {[%emt 0:01:05]} Rxc5 {[%emt 0:00:09]} 24. Qe4 {[%emt 0:00:40]} Qg5+ {[%emt 0:01:25]} 25. Kc2 {[%emt 0:00:58]} g6 {[%emt 0:00:18]} 26. Rg1 {[%emt 0:04:28]} Bxc3 {[%emt 0:00:08]} 27. bxc3 {[%emt 0:00:20]} Qf6 {[%emt 0:00:10]} 28. Bc4 {[%emt 0:01:04]} Rxc4 {[%emt 0:01:09]} 29. Qxc4 {[%emt 0:01:38]} Qf2+ {[%emt 0:00:05]} 30. Kb3 {[%emt 0:00:10]} Qxg1 {[%emt 0:00:06]} 31. Qb5 {[%emt 0:00:32]} Qb1+ {[%emt 0:00:06]} 32. Ka3 {[%emt 0:00:27]} Qxb5 {[%emt 0:00:04]} 33. axb5 {[%emt 0:00:14]} e5 {[%emt 0:47:26]} 0-1

[Event "FIDE World School-ch G-13 2025"]
[Site "Vrnjacka Banja"]
[Date "2025.03.21"]
[Round "2.6"]
[White "Omirserik, Alima"]
[Black "Nedeljkovic, Lena"]
[Result "*"]
[Annotator "NA RC"]
[ECO "D36"]
[WhiteElo "1814"]
[BlackElo "1554"]
[PlyCount "51"]
[EventDate "2025.03.19"]
[EventType "swiss"]
[EventCountry "SRB"]
[SourceTitle "playchess.com"]
[Source "ChessBase"]
[SourceQuality "1"]
[TimeControl "5400+30"]

1. d4 {[%emt 0:00:05]} d5 {[%emt 0:00:15]} 2. c4 {[%emt 0:00:03]} e6 {[%emt 0:00:23]} 3. Nc3 {[%emt 0:00:12]} Nf6 {[%emt 0:00:25]} 4. cxd5 {[%emt 0:00:09]} exd5 {[%emt 0:00:47]} 5. Bg5 {[%emt 0:00:03]} Be7 {[%emt 0:00:45]} 6. e3 {[%emt 0:00:13]} O-O {[%emt 0:01:04]} 7. Bd3 {[%emt 0:00:11]} h6 {[%emt 0:01:34]} 8. Bh4 {[%emt 0:00:03]} c6 {[%emt 0:00:51]} 9. Qc2 {[%emt 0:00:07]} Re8 {[%emt 0:03:11]} 10. Nge2 {[%emt 0:00:07]} Nfd7 {[%emt 0:03:11]} 11. Bxe7 {[%emt 0:00:49]} Qxe7 {[%emt 0:00:28]} 12. O-O {[%emt 0:00:16]} Nb6 {[%emt 1:23:36]} 13. Rae1 {[%emt 0:06:15]} Be6 {[%emt 0:05:34]} 14. f3 {[%emt 0:01:49]} N8d7 {[%emt 0:04:59]} 15. Ng3 {[%emt 0:06:41]} Nf6 {[%emt 0:06:20]} 16. e4 {[%emt 0:08:14]} Qc7 {[%emt 0:01:20]} 17. e5 {[%emt 0:00:46]} Nfd7 {[%emt 0:00:32]} 18. f4 {[%emt 0:00:32]} f6 {[%emt 0:03:47]} 19. f5 {[%emt 0:01:48]} Bf7 {[%emt 0:02:38]} 20. e6 {[%emt 0:00:09]} Bxe6 {[%emt 0:00:50]} 21. fxe6 {[%emt 0:00:06]} Nf8 {[%emt 0:00:08]} 22. Bf5 {[%emt 0:07:57]} Nc4 {[%emt 0:00:53]} 23. b3 {[%emt 0:00:48]} Nb6 {[%emt 0:00:15]} 24. a4 {[%emt 0:00:18]} a5 {[%emt 0:00:23]} 25. Nh5 {[%emt 0:01:22]} Qd6 {[%emt 0:01:39]} 26. Qe2 {[%emt 0:00:52]} *

[Event "FIDE World School-ch G-13 2025"]
[Site "Vrnjacka Banja"]
[Date "2025.03.21"]
[Round "2.6"]
[White "Enkhzaya, Zagas-Erdene"]
[Black "Obradovic, Nera"]
[Result "1-0"]
[Annotator "NA RC"]
[ECO "D36"]
[WhiteElo "1801"]
[BlackElo "1598"]
[PlyCount "63"]
[EventDate "2025.03.19"]
[EventType "swiss"]
[EventCountry "SRB"]
[SourceTitle "playchess.com"]
[Source "ChessBase"]
[SourceQuality "1"]
[TimeControl "5400+30"]

1. d4 {[%emt 0:00:05]} d5 {[%emt 0:00:15]} 2. c4 {[%emt 0:00:03]} e6 {[%emt 0:00:23]} 3. Nc3 {[%emt 0:00:12]} Nf6 {[%emt 0:00:25]} 4. cxd5 {[%emt 0:00:09]} exd5 {[%emt 0:00:47]} 5. Bg5 {[%emt 0:00:03]} Be7 {[%emt 0:00:45]} 6. e3 {[%emt 0:00:13]} O-O {[%emt 0:01:04]} 7. Bd3 {[%emt 0:00:11]} h6 {[%emt 0:01:34]} 8. Bh4 {[%emt 0:00:03]} c6 {[%emt 0:00:51]} 9. Qc2 {[%emt 0:00:07]} Re8 {[%emt 0:03:11]} 10. Nge2 {[%emt 0:00:07]} Nfd7 {[%emt 0:03:11]} 11. Bxe7 {[%emt 0:00:49]} Qxe7 {[%emt 0:00:28]} 12. O-O {[%emt 0:00:16]} Nb6 {[%emt 0:01:28]} 13. Rae1 {[%emt 0:06:15]} Be6 {[%emt 0:05:34]} 14. f3 {[%emt 0:01:49]} N8d7 {[%emt 0:04:59]} 15. Ng3 {[%emt 0:06:41]} Nf6 {[%emt 0:06:20]} 16. e4 {[%emt 0:08:14]} Qc7 {[%emt 0:01:20]} 17. e5 {[%emt 0:00:46]} Nfd7 {[%emt 0:00:32]} 18. f4 {[%emt 0:00:32]} f6 {[%emt 0:03:47]} 19. f5 {[%emt 0:01:48]} Bf7 {[%emt 0:02:38]} 20. e6 {[%emt 0:00:09]} Bxe6 {[%emt 0:00:50]} 21. fxe6 {[%emt 0:00:06]} Nf8 {[%emt 0:00:08]} 22. Bf5 {[%emt 0:07:57]} Nc4 {[%emt 0:00:53]} 23. b3 {[%emt 0:00:48]} Nb6 {[%emt 0:00:15]} 24. a4 {[%emt 0:00:18]} a5 {[%emt 0:00:23]} 25. Nh5 {[%emt 0:01:22]} Qd6 {[%emt 0:01:39]} 26. Qe2 {[%emt 0:00:52]} Re7 {[%emt 0:02:20]} 27. Qg4 {[%emt 0:00:04]} Qb4 {[%emt 0:01:34]} 28. Re3 {[%emt 0:00:52]} Qxb3 {[%emt 0:00:50]} 29. Rh3 {[%emt 0:00:50]} Nxa4 {[%emt 0:01:54]} 30. Nxf6+ {[%emt 0:00:06]} Kh8 {[%emt 0:00:48]} 31. Rxh6+ {[%emt 0:00:09]} gxh6 {[%emt 0:00:25]} 32. Qg8# {[%emt 0:00:08]} 1-0